Name,Subgroup,Service Area's,Expense Type,Narrative,Payment,Transaction Number,Amount,Supplier Name,Supplier Ref,Period,Year
Allerdale Borough Council,33112,Income,Planning and Development,Planning Fees Income,05/01/2022,492970,206,PORTAL PLAN QUEST LTD,M01566,10,2021
Allerdale Borough Council,16350,Supplies & Services,Prevention Fund,Miscellaneous Expenses,05/01/2022,492971,91.22,THE RIVERSIDE GROUP,M02111,10,2021
Allerdale Borough Council,16350,Supplies & Services,Prevention Fund,Miscellaneous Expenses,05/01/2022,492972,359.24,CASTLES & COASTS,M01448,10,2021
Allerdale Borough Council,16350,Supplies & Services,Homelessness,Miscellaneous Expenses,05/01/2022,492973,73.47,CASTLES & COASTS,M01448,10,2021
Allerdale Borough Council,10703,Employee Costs,Environmental Protection,Compensation Payments,05/01/2022,492974,100,Redacted information - included personal information ,M02112,10,2021
Allerdale Borough Council,16350,Supplies & Services,Prevention Fund,Miscellaneous Expenses,05/01/2022,492975,307.88,CASTLES & COASTS,M01448,10,2021
Allerdale Borough Council,14105,Transport,Allerdale Fleet,"Fuel, Lubricants & Consumables",20/01/2022,492976,122.45,BP OIL UK LTD ,X00022,10,2021
Allerdale Borough Council,14105,Transport,Allerdale Fleet,"Fuel, Lubricants & Consumables",,492977,287.09,BP OIL UK LTD ,X00022,10,2021
Allerdale Borough Council,10401,Employee Costs,Food Safety & Occupational Health,Agency Staff Costs,05/01/2022,492978,277.6,HAYS SPECIALIST RECRUITMENT LTD,A00280,10,2021
Allerdale Borough Council,10401,Employee Costs,Food Safety & Occupational Health,Agency Staff Costs,05/01/2022,492979,215.14,HAYS SPECIALIST RECRUITMENT LTD,A00280,10,2021
Allerdale Borough Council,15501,Supplies & Services,Coronavirus Enforcement,Consultants Fees,05/01/2022,492980,1612.5,G2 RECRUITMENT SOLUTIONS LTD,C00198,10,2021
Allerdale Borough Council,10401,Employee Costs,Food Safety & Occupational Health,Agency Staff Costs,05/01/2022,492981,347,HAYS SPECIALIST RECRUITMENT LTD,A00280,10,2021
Allerdale Borough Council,15501,Supplies & Services,Coronavirus Enforcement,Consultants Fees,05/01/2022,492982,1591,G2 RECRUITMENT SOLUTIONS LTD,C00198,10,2021
Allerdale Borough Council,10401,Employee Costs,Food Safety & Occupational Health,Agency Staff Costs,05/01/2022,492983,166.56,HAYS SPECIALIST RECRUITMENT LTD,A00280,10,2021
Allerdale Borough Council,15302,Supplies & Services,Environmental Protection,Protective Clothing,05/01/2022,492984,91.92,ARCO LIMITED ,A00045,10,2021
Allerdale Borough Council,15302,Supplies & Services,Food and Occupational Health,Protective Clothing,05/01/2022,492985,26.93,ARCO LIMITED,A00045,10,2021
Allerdale Borough Council,12101,Premises,Corporate Property Maintenance,External Maintenance & Decoration,05/01/2022,492986,250,ASHCROFT DEMOLITION (CUMBRIA) LTD,C00197,10,2021
Allerdale Borough Council,12101,Premises,Corporate Property Maintenance,External Maintenance & Decoration,05/01/2022,492987,200,ASHCROFT DEMOLITION (CUMBRIA) LTD,C00197,10,2021
Allerdale Borough Council,10401,Employee Costs,Food Safety & Occupational Health,Agency Staff Costs,12/01/2022,492988,72.87,HAYS SPECIALIST RECRUITMENT LTD,A00280,10,2021
Allerdale Borough Council,12309,Premises,Multi Storey Car Park Utilities & Maint,Fire and Safety,05/01/2022,492989,123.4,ORIAN SOLUTIONS LTD,A01814,10,2021
Allerdale Borough Council,15401,Supplies & Services,Corporate Postage and Stationary,General Stationery,12/01/2022,492990,25.82,AMAZON PAYMENTS UK LTD,A02682,10,2021
Allerdale Borough Council,12202,Premises,Corporate Property Maintenance,Electrical Repairs and Service,05/01/2022,492991,1154.9,JJ GROUP (CONTRACTING) LTD,C00038,10,2021
Allerdale Borough Council,15101,Supplies & Services,Confidential Waste,Equipment Costs,05/01/2022,492992,108,J DUFFY LTD ,A01846,10,2021
Allerdale Borough Council,20150,Third Party Payments,Festivals & Events,General Partnership Service Fees,05/01/2022,492993,895,Redacted information - included personal information ,A02686,10,2021
Allerdale Borough Council,20150,Third Party Payments,Public Building Cleaning,General Partnership Service Fees,05/01/2022,492994,303.75,ORIAN SOLUTIONS LTD,A01814,10,2021
Allerdale Borough Council,20150,Third Party Payments,Public Building Cleaning,General Partnership Service Fees,05/01/2022,492995,303.75,ORIAN SOLUTIONS LTD,A01814,10,2021
Allerdale Borough Council,15506,Supplies & Services,Legal Services,Professional Services,05/01/2022,492996,1500,KINGS CHAMBERS,A00348,10,2021
Allerdale Borough Council,15506,Supplies & Services,Legal Services,Professional Services,12/01/2022,492997,750,KINGS CHAMBERS,A00348,10,2021
Allerdale Borough Council,10401,Employee Costs,Food Safety & Occupational Health,Agency Staff Costs,12/01/2022,492998,277.6,HAYS SPECIALIST RECRUITMENT LTD,A00280,10,2021
Allerdale Borough Council,12101,Premises,Coastal Protection and Inland Flooding,External Maintenance & Decoration,05/01/2022,492999,479,ASHCROFT DEMOLITION (CUMBRIA) LTD,C00197,10,2021
Allerdale Borough Council,15401,Supplies & Services,Corporate Postage and Stationary,General Stationery,26/01/2022,493000,190.79,LYRECO,A00043,10,2021
Allerdale Borough Council,15508,Supplies & Services,Corporate Improvement Team,Subscriptions,26/01/2022,493001,3025,LOCAL GOVERMENT INFORMATION UNIT LTD,A01881,10,2021
Allerdale Borough Council,20150,Third Party Payments,Festivals & Events,General Partnership Service Fees,05/01/2022,493002,100,Redacted information - included personal information ,A02917,10,2021
Allerdale Borough Council,20150,Third Party Payments,Festivals & Events,General Partnership Service Fees,05/01/2022,493003,200,RELIGION ON TOMORROW,A02916,10,2021
Allerdale Borough Council,20150,Third Party Payments,Festivals & Events,General Partnership Service Fees,05/01/2022,493004,200,Redacted information - included personal information ,A02918,10,2021
Allerdale Borough Council,10401,Employee Costs,Housing Improvement,Agency Staff Costs,05/01/2022,493005,712.5,G2 RECRUITMENT SOLUTIONS LTD,C00198,10,2021
Allerdale Borough Council,15501,Supplies & Services,Homelessness,Consultants Fees,05/01/2022,493006,10,JAMES STREET GROUP PRACTICE,A00462,10,2021
Allerdale Borough Council,12403,Premises,Domestic Abuse Funding,Gas,05/01/2022,493007,47.22,CORONA ENERGY,X00003,10,2021
Allerdale Borough Council,15601,Supplies & Services,Corporate Postage and Stationary,Postage,05/01/2022,493008,60.34,ROYAL MAIL LETTERS,X00021,10,2021
Allerdale Borough Council,12403,Premises,Homelessness,Gas,05/01/2022,493009,35.59,CORONA ENERGY,X00003,10,2021
Allerdale Borough Council,12403,Premises,Domestic Abuse Funding,Gas,05/01/2022,493010,54.52,CORONA ENERGY,X00003,10,2021
Allerdale Borough Council,12403,Premises,Homelessness,Gas,05/01/2022,493011,29.83,CORONA ENERGY,X00003,10,2021
Allerdale Borough Council,12403,Premises,Homelessness,Gas,05/01/2022,493012,61.65,CORONA ENERGY,X00003,10,2021
Allerdale Borough Council,12403,Premises,Homelessness,Gas,05/01/2022,493013,10.99,CORONA ENERGY,X00003,10,2021
Allerdale Borough Council,12403,Premises,Homelessness,Gas,05/01/2022,493014,7.97,CORONA ENERGY,X00003,10,2021
Allerdale Borough Council,12403,Premises,Homelessness,Gas,05/01/2022,493015,40.38,CORONA ENERGY,X00003,10,2021
Allerdale Borough Council,12402,Premises,Domestic Abuse Funding,Electricity,05/01/2022,493016,59.62,NPOWER ,X00015,10,2021
Allerdale Borough Council,12402,Premises,Domestic Abuse Funding,Electricity,05/01/2022,493017,14.22,NPOWER ,X00015,10,2021
Allerdale Borough Council,12402,Premises,Domestic Abuse Funding,Electricity,05/01/2022,493018,13.77,NPOWER ,X00015,10,2021
Allerdale Borough Council,12402,Premises,Domestic Abuse Funding,Electricity,05/01/2022,493019,-35.57,NPOWER ,X00015,10,2021
Allerdale Borough Council,12402,Premises,Homelessness,Electricity,05/01/2022,493020,118.77,NPOWER ,X00015,10,2021
Allerdale Borough Council,12402,Premises,Homelessness,Electricity,05/01/2022,493021,72.91,NPOWER ,X00015,10,2021
Allerdale Borough Council,12402,Premises,Homelessness,Electricity,05/01/2022,493022,41.99,NPOWER ,X00015,10,2021
Allerdale Borough Council,12402,Premises,Homelessness,Electricity,05/01/2022,493023,40.9,NPOWER ,X00015,10,2021
Allerdale Borough Council,12408,Premises,Homelessness,Water & Sewage,05/01/2022,493024,162.75,UNITED UTILITIES WATER LTD,X00293,10,2021
Allerdale Borough Council,12408,Premises,Homelessness,Water & Sewage,05/01/2022,493025,193.61,UNITED UTILITIES WATER LTD,X00293,10,2021
Allerdale Borough Council,15103,Supplies & Services,COVID19 - General Costs,Purchase of Materials,05/01/2022,493026,972.5,RED OAK DIRECT LIMITED,A02813,10,2021
Allerdale Borough Council,15506,Supplies & Services,Maryport HAZ,Professional Services,05/01/2022,493027,3750,YAN TAN TETHERA CREATIVE,A02837,10,2021
Allerdale Borough Council,15101,Supplies & Services,Assistance - Housing Services,Equipment Costs,05/01/2022,493028,99,FERRET INFORMATION SYSTEMS LTD,A02057,10,2021
Allerdale Borough Council,15508,Supplies & Services,Housing Strategic Function,Subscriptions,05/01/2022,493029,60,COPELAND BOROUGH COUNCIL,A00589,10,2021
Allerdale Borough Council,15506,Supplies & Services,Workington - Towns Fund Schemes,Professional Services,12/01/2022,493030,55501.62,MOTT MACDONALD LTD,C00161,10,2021
Allerdale Borough Council,15301,Supplies & Services,Workington Nature Partnership,Uniforms,12/01/2022,493031,138.45,KELTIC,A00017,10,2021
Allerdale Borough Council,12405,Premises,NSAP,Rentals and Lease Charges,12/01/2022,493032,385,CUMBERLAND HOTEL,A02415,10,2021
Allerdale Borough Council,12405,Premises,NSAP,Rentals and Lease Charges,12/01/2022,493033,540,CUMBERLAND HOTEL,A02415,10,2021
Allerdale Borough Council,12405,Premises,NSAP,Rentals and Lease Charges,12/01/2022,493034,630,CUMBERLAND HOTEL,A02415,10,2021
Allerdale Borough Council,10401,Employee Costs,Housing Improvement,Agency Staff Costs,12/01/2022,493035,806.25,G2 RECRUITMENT SOLUTIONS LTD,C00198,10,2021
Allerdale Borough Council,14101,Transport,Allerdale Fleet,Vehicle Leasing,12/01/2022,493036,7527.72,DAYS FLEET,A02515,10,2021
Allerdale Borough Council,15405,Supplies & Services,Elections,Use of External Printers,12/01/2022,493037,1700,ADARE SEC LIMITED,A02306,10,2021
Allerdale Borough Council,15601,Supplies & Services,Elections,Postage,12/01/2022,493038,1399.57,ADARE SEC LIMITED,A02306,10,2021
Allerdale Borough Council,10401,Employee Costs,Housing Improvement,Agency Staff Costs,12/01/2022,493039,262.5,G2 RECRUITMENT SOLUTIONS LTD,C00198,10,2021
Allerdale Borough Council,15506,Supplies & Services,Environmental Protection,Professional Services,12/01/2022,493041,1794.6,SOCOTEC UK LIMITED,A00896,10,2021
Allerdale Borough Council,15506,Supplies & Services,Legal Services,Professional Services,12/01/2022,493042,1500,KINGS CHAMBERS,A00348,10,2021
Allerdale Borough Council,12202,Premises,Corporate Property Maintenance,Electrical Repairs and Service,12/01/2022,493043,2260,CITY ELECTRICAL FACTORS,A00395,10,2021
Allerdale Borough Council,14150,Transport,Gates Travel,General-Council Vehicles (Non-Capital),,493044,293.5,GATES TRAVEL,A01525,10,2021
Allerdale Borough Council,16101,Supplies & Services,Planning and Development,Statutory Notices,02/02/2022,493045,400.9,NEWSQUEST MEDIA GROUP,A02348,10,2021
Allerdale Borough Council,10110,Employee Costs,Busy Bees Childcare Scheme,Salary Sacrifice,12/01/2022,493046,165,COMPUTERSHARE VOUCHER SERVICES,A00991,10,2021
Allerdale Borough Council,10110,Employee Costs,Busy Bees Childcare Scheme,Salary Sacrifice,12/01/2022,493047,9.08,COMPUTERSHARE VOUCHER SERVICES,A00991,10,2021
Allerdale Borough Council,12101,Premises,Corporate Property Maintenance,External Maintenance & Decoration,02/02/2022,493048,145,TIVOLI GROUP LTD,A02568,10,2021
Allerdale Borough Council,12101,Premises,Corporate Property Maintenance,External Maintenance & Decoration,12/01/2022,493049,185,TIVOLI GROUP LTD,A02568,10,2021
Allerdale Borough Council,15401,Supplies & Services,Corporate Postage and Stationary,General Stationery,26/01/2022,493050,31.84,LYRECO,A00043,10,2021
Allerdale Borough Council,15405,Supplies & Services,Elections,Use of External Printers,12/01/2022,493051,247.86,ADARE SEC LIMITED,A02306,10,2021
Allerdale Borough Council,15601,Supplies & Services,Elections,Postage,12/01/2022,493052,3269.93,ADARE SEC LIMITED,A02306,10,2021
Allerdale Borough Council,15405,Supplies & Services,Electoral Registration,Use of External Printers,12/01/2022,493053,82.5,ADARE SEC LIMITED,A02306,10,2021
Allerdale Borough Council,15501,Supplies & Services,Building Control - Chargeable,Consultants Fees,19/01/2022,493054,46,PK ELECTRICAL (CARLISLE) LTD,A00778,10,2021
Allerdale Borough Council,15601,Supplies & Services,Corporate Postage and Stationary,Postage,12/01/2022,493055,635.84,UK MAIL GROUP PLC,A02371,10,2021
Allerdale Borough Council,15601,Supplies & Services,Corporate Postage and Stationary,Postage,12/01/2022,493056,806.61,UK MAIL GROUP PLC,A02371,10,2021
Allerdale Borough Council,15101,Supplies & Services,Bin Deliveries,Equipment Costs,12/01/2022,493057,40800.25,ALLERDALE WASTE SERVICES LIMITED,A02756,10,2021
Allerdale Borough Council,12405,Premises,Homelessness,Rentals and Lease Charges,12/01/2022,493058,7420.14,CASTLES & COASTS HOUSING ASSOCIATION LTD,A02465,10,2021
Allerdale Borough Council,12202,Premises,Multi Storey Car Park Utilities & Maint,Electrical Repairs and Service,12/01/2022,493059,320,CITY ELECTRICAL FACTORS,A00395,10,2021
Allerdale Borough Council,16350,Supplies & Services,Allerdale Options,Miscellaneous Expenses,26/01/2022,493060,218.78,AVC WISE LIMITED,A02856,10,2021
Allerdale Borough Council,15101,Supplies & Services,Off-street - Owned,Equipment Costs,19/01/2022,493061,9.29,RELIANCE HIGH-TECH LTD,C00123,10,2021
Allerdale Borough Council,15101,Supplies & Services,Off-street - Owned,Equipment Costs,19/01/2022,493062,120.77,RELIANCE HIGH-TECH LTD,C00123,10,2021
Allerdale Borough Council,15501,Supplies & Services,Domestic Waste,Consultants Fees,19/01/2022,493063,2850,WHITESPACE WORK SOFTWARE,A02678,10,2021
Allerdale Borough Council,15101,Supplies & Services,Multi-storey Car Park,Equipment Costs,26/01/2022,493064,367.5,METRIC GROUP LTD,A00568,10,2021
Allerdale Borough Council,16006,Supplies & Services,Off-street - Owned,Mii Permit charges,26/01/2022,493065,30.58,CHIPSIDE LIMITED,A00004,10,2021
Allerdale Borough Council,16006,Supplies & Services,Off-street - Owned,Mii Permit charges,26/01/2022,493066,404.23,CHIPSIDE LIMITED,A00004,10,2021
Allerdale Borough Council,16350,Supplies & Services,Off-street - Owned,Miscellaneous Expenses,26/01/2022,493067,2281.75,3C PAYMENT LIMITED,A02382,10,2021
Allerdale Borough Council,15601,Supplies & Services,Corporate Postage and Stationary,Postage,12/01/2022,493068,796.64,UK MAIL GROUP PLC,A02371,10,2021
Allerdale Borough Council,15601,Supplies & Services,Corporate Postage and Stationary,Postage,12/01/2022,493069,2494.61,UK MAIL GROUP PLC,A02371,10,2021
Allerdale Borough Council,15601,Supplies & Services,Corporate Postage and Stationary,Postage,12/01/2022,493070,1201.62,UK MAIL GROUP PLC,A02371,10,2021
Allerdale Borough Council,15101,Supplies & Services,Off-street - Owned,Equipment Costs,26/01/2022,493071,3040,METRIC GROUP LTD,A00568,10,2021
Allerdale Borough Council,12405,Premises,Homelessness,Rentals and Lease Charges,12/01/2022,493072,1250,HOME GROUP LTD,A00423,10,2021
Allerdale Borough Council,15506,Supplies & Services,Economic Regeneration,Professional Services,26/01/2022,493073,25134.55,WINNING MOVES AT WEWORK,A02740,10,2021
Allerdale Borough Council,16003,Supplies & Services,Off-street - Owned,Security of Cash Movements,26/01/2022,493074,1365,G4S CASH SOLUTIONS (UK) LTD,A02421,10,2021
Allerdale Borough Council,10601,Employee Costs,Training,External Courses & Seminar Fees,02/02/2022,493075,678,FERRET INFORMATION SYSTEMS LTD,A02057,10,2021
Allerdale Borough Council,12201,Premises,Multi Storey Car Park Utilities & Maint,Internal Maintenance,12/01/2022,493076,327.54,TIVOLI GROUP LTD,A02568,10,2021
Allerdale Borough Council,15508,Supplies & Services,Community Lottery,Subscriptions,,493077,385,THE LOTTERIES COUNCIL,A02812,10,2021
Allerdale Borough Council,15501,Supplies & Services,Coronavirus Enforcement,Consultants Fees,12/01/2022,493078,1591,G2 RECRUITMENT SOLUTIONS LTD,C00198,10,2021
Allerdale Borough Council,10401,Employee Costs,Food Safety & Occupational Health,Agency Staff Costs,26/01/2022,493079,599.2,HAYS SPECIALIST RECRUITMENT LTD,A00280,10,2021
Allerdale Borough Council,10401,Employee Costs,Food Safety & Occupational Health,Agency Staff Costs,26/01/2022,493080,277.6,HAYS SPECIALIST RECRUITMENT LTD,A00280,10,2021
Allerdale Borough Council,10401,Employee Costs,Food Safety & Occupational Health,Agency Staff Costs,19/01/2022,493081,55.52,HAYS SPECIALIST RECRUITMENT LTD,A00280,10,2021
Allerdale Borough Council,10401,Employee Costs,Food Safety & Occupational Health,Agency Staff Costs,19/01/2022,493082,599.2,HAYS SPECIALIST RECRUITMENT LTD,A00280,10,2021
Allerdale Borough Council,10401,Employee Costs,Food Safety & Occupational Health,Agency Staff Costs,19/01/2022,493083,166.56,HAYS SPECIALIST RECRUITMENT LTD,A00280,10,2021
Allerdale Borough Council,15507,Supplies & Services,Land Charges Service,Searches,12/01/2022,493084,640,LAKE DISTRICT NATIONAL PARK AUTHORITY,A00415,10,2021
Allerdale Borough Council,15101,Supplies & Services,Street Cleansing,Equipment Costs,02/02/2022,493085,4000,TIVOLI GROUP LTD,A02568,10,2021
Allerdale Borough Council,10604,Employee Costs,Elections,Hire of Training Rooms/Venues,12/01/2022,493086,250,BOLTON STREET COMMUNITY HALL,M02029,10,2021
Allerdale Borough Council,10604,Employee Costs,Elections,Hire of Training Rooms/Venues,12/01/2022,493087,250,CHRIST CENTRAL CHURCH,M02113,10,2021
Allerdale Borough Council,10604,Employee Costs,Elections,Hire of Training Rooms/Venues,12/01/2022,493088,370,CUMBRIA TEACHER TRAINING,M02114,10,2021
Allerdale Borough Council,10604,Employee Costs,Elections,Hire of Training Rooms/Venues,12/01/2022,493089,150,WORKINGTON HERITAGE GROUP LTD,A00339,10,2021
Allerdale Borough Council,10604,Employee Costs,Elections,Hire of Training Rooms/Venues,12/01/2022,493090,200,THE OVAL CENTRE,M00135,10,2021
Allerdale Borough Council,32111,Income,Off-street - Managed,Management Fee - Car Parks Income,12/01/2022,493091,537.79,ALLERDALE,A00342,10,2021
Allerdale Borough Council,12400,Premises,Customer Services Pay Group,Budget-Building and Utility Charges,,493092,7.99,BARCLAYCARD COMMERCIAL ,X00207,10,2021
Allerdale Borough Council,33121,Income,Off-street - Owned,Excess Charges - Car Parks Income,12/01/2022,493093,25,Redacted information - included personal information ,M02116,10,2021
Allerdale Borough Council,30100,Income,Prevention Fund,Budget -Government Grants Income,12/01/2022,493094,240,Redacted information - included personal information ,M02085,10,2021
Allerdale Borough Council,16350,Supplies & Services,Prevention Fund,Miscellaneous Expenses,12/01/2022,493095,878.27,HOME GROUP LTD,A00423,10,2021
Allerdale Borough Council,20150,Third Party Payments,Managed Car Parks,General Partnership Service Fees,12/01/2022,493096,7270.3,MARYPORT HARBOUR & MARINA LIMITED,A00186,10,2021
Allerdale Borough Council,16350,Supplies & Services,Prevention Fund,Miscellaneous Expenses,12/01/2022,493097,360,Redacted information - included personal information ,M01980,10,2021
Allerdale Borough Council,20150,Third Party Payments,Managed Car Parks,General Partnership Service Fees,12/01/2022,493098,3371.71,ST JOHNS COURT (CUMBRIA) LTD,A02826,10,2021
Allerdale Borough Council,33113,Income,Building Control - Chargeable,Building Control Fees Income,12/01/2022,493099,175,Redacted information - included personal information ,M02115,10,2021
Allerdale Borough Council,15811,Supplies & Services,IT Services,Software Maintenance,27/01/2022,493100,351,SAGE (UK) LTD ,A01911,10,2021
Allerdale Borough Council,20150,Third Party Payments,Festivals & Events,General Partnership Service Fees,12/01/2022,493101,400,THOMAS KAY PHOTOGRAPHY,A00245,10,2021
Allerdale Borough Council,15405,Supplies & Services,Trade Waste,Use of External Printers,12/01/2022,493102,551,FIRPRESS PRINTERS,A00063,10,2021
Allerdale Borough Council,15811,Supplies & Services,Arcus,Software Maintenance,12/01/2022,493103,190,FERRET INFORMATION SYSTEMS LTD,A02057,10,2021
Allerdale Borough Council,20150,Third Party Payments,Festivals & Events,General Partnership Service Fees,12/01/2022,493104,150,JAMMING WITH THE ZEBRA,A02915,10,2021
Allerdale Borough Council,20150,Third Party Payments,Festivals & Events,General Partnership Service Fees,12/01/2022,493105,150,COCKERMOUTH MECHANICS BAND,A02907,10,2021
Allerdale Borough Council,20150,Third Party Payments,Festivals & Events,General Partnership Service Fees,12/01/2022,493106,1771,CUMBRIA COAL LTD,A02710,10,2021
Allerdale Borough Council,15101,Supplies & Services,Off-street - Owned,Equipment Costs,12/01/2022,493107,354.75,CITY ELECTRICAL FACTORS,A00395,10,2021
Allerdale Borough Council,15810,Supplies & Services,IT Services,Software Licences,19/01/2022,493108,171.6,LOGMEIN TECHNOLOGIES UK TD,A02565,10,2021
Allerdale Borough Council,20150,Third Party Payments,Festivals & Events,General Partnership Service Fees,12/01/2022,493109,2075,Redacted information - included personal information ,A02801,10,2021
Allerdale Borough Council,16001,Supplies & Services,Banking and Interest,Bank Charges and Fees,12/01/2022,493110,16.99,ALLPAY.NET LIMITED,A00714,10,2021
Allerdale Borough Council,16001,Supplies & Services,Banking and Interest,Bank Charges and Fees,12/01/2022,493111,10,ALLPAY.NET LIMITED,A00714,10,2021
Allerdale Borough Council,16001,Supplies & Services,Banking and Interest,Bank Charges and Fees,12/01/2022,493112,10,ALLPAY.NET LIMITED,A00714,10,2021
Allerdale Borough Council,16001,Supplies & Services,Banking and Interest,Bank Charges and Fees,12/01/2022,493113,10,ALLPAY.NET LIMITED,A00714,10,2021
Allerdale Borough Council,16001,Supplies & Services,Banking and Interest,Bank Charges and Fees,12/01/2022,493114,24.07,ALLPAY.NET LIMITED,A00714,10,2021
Allerdale Borough Council,16001,Supplies & Services,Banking and Interest,Bank Charges and Fees,12/01/2022,493115,1098.35,ALLPAY.NET LIMITED,A00714,10,2021
Allerdale Borough Council,16001,Supplies & Services,Banking and Interest,Bank Charges and Fees,12/01/2022,493116,26.79,ALLPAY.NET LIMITED,A00714,10,2021
Allerdale Borough Council,16001,Supplies & Services,Banking and Interest,Bank Charges and Fees,12/01/2022,493117,13.6,ALLPAY.NET LIMITED,A00714,10,2021
Allerdale Borough Council,16001,Supplies & Services,Banking and Interest,Bank Charges and Fees,12/01/2022,493118,15.48,ALLPAY.NET LIMITED,A00714,10,2021
Allerdale Borough Council,16001,Supplies & Services,Banking and Interest,Bank Charges and Fees,12/01/2022,493119,11.34,ALLPAY.NET LIMITED,A00714,10,2021
Allerdale Borough Council,15811,Supplies & Services,IT Services,Software Maintenance,19/01/2022,493120,7762.21,CIVICA UK LIMITED,A00006,10,2021
Allerdale Borough Council,15601,Supplies & Services,Corporate Postage and Stationary,Postage,12/01/2022,493121,678.92,UK MAIL GROUP PLC,A02371,10,2021
Allerdale Borough Council,12403,Premises,Homelessness,Gas,12/01/2022,493122,85,CASTLES & COASTS HOUSING ASSOCIATION LTD,A02465,10,2021
Allerdale Borough Council,15101,Supplies & Services,Off-street - Owned,Equipment Costs,12/01/2022,493123,1400,GORDON GRAHAM ROADMARKINGS LTD,C00165,10,2021
Allerdale Borough Council,20150,Third Party Payments,Festivals & Events,General Partnership Service Fees,12/01/2022,493124,150,Redacted information - included personal information ,A02922,10,2021
Allerdale Borough Council,15810,Supplies & Services,IT Services,Software Licences,12/01/2022,493125,950,VAADHOO LIMITED,A02268,10,2021
Allerdale Borough Council,12309,Premises,Multi Storey Car Park Utilities & Maint,Fire and Safety,19/01/2022,493126,629.61,COOK FIRE & SECURITY LTD,A02485,10,2021
Allerdale Borough Council,50000,Capital Expenditure,Biodiversity & Green Infrast programmes,Capital Programme,02/02/2022,493127,4394.5,TIVOLI GROUP LTD,A02568,10,2021
Allerdale Borough Council,20150,Third Party Payments,Festivals & Events,General Partnership Service Fees,,493128,320,TIVOLI GROUP LTD,A02568,10,2021
Allerdale Borough Council,20150,Third Party Payments,Festivals & Events,General Partnership Service Fees,02/02/2022,493129,320,TIVOLI GROUP LTD,A02568,10,2021
Allerdale Borough Council,12101,Premises,Asset Transfer,External Maintenance & Decoration,02/02/2022,493130,90,TIVOLI GROUP LTD,A02568,10,2021
Allerdale Borough Council,50000,Capital Expenditure,Biodiversity & Green Infrast programmes,Capital Programme,12/01/2022,493131,1887.5,TIVOLI GROUP LTD,A02568,10,2021
Allerdale Borough Council,12104,Premises,Environmental Initiatives,Playground Equipment,12/01/2022,493132,375,TIVOLI GROUP LTD,A02568,10,2021
Allerdale Borough Council,20300,Third Party Payments,Parks and Grounds Maintenance,Budget-Contract Services,02/02/2022,493133,2982.5,TIVOLI GROUP LTD,A02568,10,2021
Allerdale Borough Council,50000,Capital Expenditure,Biodiversity & Green Infrast programmes,Capital Programme,02/02/2022,493134,600,TIVOLI GROUP LTD,A02568,10,2021
Allerdale Borough Council,20104,Third Party Payments,Street Cleansing,Street Cleansing,02/02/2022,493135,260,TIVOLI GROUP LTD,A02568,10,2021
Allerdale Borough Council,20150,Third Party Payments,Festivals & Events,General Partnership Service Fees,12/01/2022,493136,200,INDIE STREET CLUB,A02925,10,2021
Allerdale Borough Council,20150,Third Party Payments,Festivals & Events,General Partnership Service Fees,12/01/2022,493137,200,URBAN NATIVES UK,A02923,10,2021
Allerdale Borough Council,16101,Supplies & Services,Solway coast multi-user pathway,Statutory Notices,12/01/2022,493138,287,CUMBRIA COUNTY COUNCIL,A00066,10,2021
Allerdale Borough Council,16101,Supplies & Services,Solway coast multi-user pathway,Statutory Notices,12/01/2022,493139,287,CUMBRIA COUNTY COUNCIL ,A00066,10,2021
Allerdale Borough Council,16101,Supplies & Services,Planning and Development,Statutory Notices,12/01/2022,493140,434.3,NEWSQUEST MEDIA GROUP,A02348,10,2021
Allerdale Borough Council,15302,Supplies & Services,COVID19 - General Costs,Protective Clothing,12/01/2022,493141,23.96,RED OAK DIRECT LIMITED,A02813,10,2021
Allerdale Borough Council,15302,Supplies & Services,COVID19 - General Costs,Protective Clothing,12/01/2022,493142,119.8,RED OAK DIRECT LIMITED,A02813,10,2021
Allerdale Borough Council,20150,Third Party Payments,Festivals & Events,General Partnership Service Fees,12/01/2022,493143,4060,AJ SECURITY,A02716,10,2021
Allerdale Borough Council,15702,Supplies & Services,IT Services,Line Rentals,12/01/2022,493144,95.89,BRITISH TELECOMMUNICATIONS,X00004,10,2021
Allerdale Borough Council,35106,Income,Homelessness,Dwellings Income,12/01/2022,493145,69.18,ALLERDALE ,A00342,10,2021
Allerdale Borough Council,35106,Income,Homelessness,Dwellings Income,12/01/2022,493146,80.71,ALLERDALE,A00342,10,2021
Allerdale Borough Council,15601,Supplies & Services,Electoral Registration,Postage,12/01/2022,493147,41,ROYAL MAIL LETTERS,X00021,10,2021
Allerdale Borough Council,15804,Supplies & Services,IT Services,Computer Data Lines B.T.,26/01/2022,493148,45,VAIONI GROUP LTD,A02471,10,2021
Allerdale Borough Council,15804,Supplies & Services,IT Services,Computer Data Lines B.T.,26/01/2022,493149,1050.83,VAIONI GROUP LTD,A02471,10,2021
Allerdale Borough Council,15601,Supplies & Services,Elections,Postage,12/01/2022,493150,1598.59,ROYAL MAIL LETTERS,X00021,10,2021
Allerdale Borough Council,15702,Supplies & Services,IT Services,Line Rentals,12/01/2022,493151,826.76,BECKETT TELECOM,A02792,10,2021
Allerdale Borough Council,35106,Income,Homelessness,Dwellings Income,12/01/2022,493152,69.18,ALLERDALE,A00342,10,2021
Allerdale Borough Council,10110,Employee Costs,Chief Exec & Chief Officers,Salary Sacrifice,12/01/2022,493153,1057.34,TUSKERDIRECT LTD,A02186,10,2021
Allerdale Borough Council,12408,Premises,Public Convenience Cleaning,Water & Sewage,12/01/2022,493154,397.47,ANGLIAN WATER BUSINESS (NATIONAL),X00310,10,2021
Allerdale Borough Council,12405,Premises,Corporate Property Maintenance,Rentals and Lease Charges,12/01/2022,493155,28.01,ANGLIAN WATER BUSINESS (NATIONAL),X00310,10,2021
Allerdale Borough Council,12408,Premises,Corporate Property Maintenance,Water & Sewage,12/01/2022,493156,0.07,ANGLIAN WATER BUSINESS (NATIONAL),X00310,10,2021
Allerdale Borough Council,12408,Premises,Corporate Property Maintenance,Water & Sewage,12/01/2022,493157,54.74,ANGLIAN WATER BUSINESS (NATIONAL),X00310,10,2021
Allerdale Borough Council,12408,Premises,Corporate Property Maintenance,Water & Sewage,12/01/2022,493158,141.23,ANGLIAN WATER BUSINESS (NATIONAL),X00310,10,2021
Allerdale Borough Council,12408,Premises,Corporate Property Maintenance,Water & Sewage,12/01/2022,493159,15.32,ANGLIAN WATER BUSINESS (NATIONAL),X00310,10,2021
Allerdale Borough Council,12408,Premises,Corporate Property Maintenance,Water & Sewage,12/01/2022,493160,1.37,ANGLIAN WATER BUSINESS (NATIONAL),X00310,10,2021
Allerdale Borough Council,12408,Premises,Public Convenience Cleaning,Water & Sewage,12/01/2022,493161,28.84,ANGLIAN WATER BUSINESS (NATIONAL),X00310,10,2021
Allerdale Borough Council,12408,Premises,Corporate Property Maintenance,Water & Sewage,12/01/2022,493162,10.42,ANGLIAN WATER BUSINESS (NATIONAL),X00310,10,2021
Allerdale Borough Council,12408,Premises,Corporate Property Maintenance,Water & Sewage,12/01/2022,493163,157.82,ANGLIAN WATER BUSINESS (NATIONAL),X00310,10,2021
Allerdale Borough Council,12408,Premises,Corporate Property Maintenance,Water & Sewage,12/01/2022,493164,31.51,ANGLIAN WATER BUSINESS (NATIONAL),X00310,10,2021
Allerdale Borough Council,12408,Premises,Public Convenience Cleaning,Water & Sewage,12/01/2022,493165,32.07,ANGLIAN WATER BUSINESS (NATIONAL),X00310,10,2021
Allerdale Borough Council,12408,Premises,Public Convenience Cleaning,Water & Sewage,12/01/2022,493166,18.36,ANGLIAN WATER BUSINESS (NATIONAL),X00310,10,2021
Allerdale Borough Council,12408,Premises,Public Convenience Cleaning,Water & Sewage,12/01/2022,493167,18.34,ANGLIAN WATER BUSINESS (NATIONAL),X00310,10,2021
Allerdale Borough Council,12408,Premises,Corporate Property Maintenance,Water & Sewage,12/01/2022,493168,110.73,ANGLIAN WATER BUSINESS (NATIONAL),X00310,10,2021
Allerdale Borough Council,12408,Premises,Public Convenience Cleaning,Water & Sewage,12/01/2022,493169,60.82,ANGLIAN WATER BUSINESS (NATIONAL),X00310,10,2021
Allerdale Borough Council,12408,Premises,Public Convenience Cleaning,Water & Sewage,12/01/2022,493170,97.23,ANGLIAN WATER BUSINESS (NATIONAL),X00310,10,2021
Allerdale Borough Council,12408,Premises,Corporate Property Maintenance,Water & Sewage,12/01/2022,493171,31.53,ANGLIAN WATER BUSINESS (NATIONAL),X00310,10,2021
Allerdale Borough Council,12408,Premises,Corporate Property Maintenance,Water & Sewage,12/01/2022,493172,1.37,ANGLIAN WATER BUSINESS (NATIONAL),X00310,10,2021
Allerdale Borough Council,12408,Premises,Corporate Property Maintenance,Water & Sewage,12/01/2022,493173,146.75,ANGLIAN WATER BUSINESS (NATIONAL),X00310,10,2021
Allerdale Borough Council,12408,Premises,Corporate Property Maintenance,Water & Sewage,12/01/2022,493174,-98.71,ANGLIAN WATER BUSINESS (NATIONAL),X00310,10,2021
Allerdale Borough Council,12408,Premises,Corporate Property Maintenance,Water & Sewage,12/01/2022,493175,52.95,ANGLIAN WATER BUSINESS (NATIONAL),X00310,10,2021
Allerdale Borough Council,12408,Premises,Public Convenience Cleaning,Water & Sewage,12/01/2022,493176,41.64,ANGLIAN WATER BUSINESS (NATIONAL),X00310,10,2021
Allerdale Borough Council,12408,Premises,Public Convenience Cleaning,Water & Sewage,12/01/2022,493177,36.36,ANGLIAN WATER BUSINESS (NATIONAL),X00310,10,2021
Allerdale Borough Council,12408,Premises,Corporate Property Maintenance,Water & Sewage,12/01/2022,493178,16.94,ANGLIAN WATER BUSINESS (NATIONAL),X00310,10,2021
Allerdale Borough Council,12408,Premises,Car Parks Inspection & Maintenance,Water & Sewage,12/01/2022,493179,50.28,ANGLIAN WATER BUSINESS (NATIONAL),X00310,10,2021
Allerdale Borough Council,12408,Premises,Car Parks Inspection & Maintenance,Water & Sewage,12/01/2022,493180,14.08,ANGLIAN WATER BUSINESS (NATIONAL),X00310,10,2021
Allerdale Borough Council,12408,Premises,Corporate Property Maintenance,Water & Sewage,12/01/2022,493181,12.3,ANGLIAN WATER BUSINESS (NATIONAL),X00310,10,2021
Allerdale Borough Council,12408,Premises,Corporate Property Maintenance,Water & Sewage,12/01/2022,493182,1.39,ANGLIAN WATER BUSINESS (NATIONAL),X00310,10,2021
Allerdale Borough Council,12408,Premises,Corporate Property Maintenance,Water & Sewage,12/01/2022,493183,11.27,ANGLIAN WATER BUSINESS (NATIONAL),X00310,10,2021
Allerdale Borough Council,12408,Premises,Corporate Property Maintenance,Water & Sewage,12/01/2022,493184,0.07,ANGLIAN WATER BUSINESS (NATIONAL),X00310,10,2021
Allerdale Borough Council,12408,Premises,Multi Storey Car Park Utilities & Maint,Water & Sewage,12/01/2022,493185,640.95,ANGLIAN WATER BUSINESS (NATIONAL),X00310,10,2021
Allerdale Borough Council,12408,Premises,Corporate Property Maintenance,Water & Sewage,12/01/2022,493186,309.32,ANGLIAN WATER BUSINESS (NATIONAL),X00310,10,2021
Allerdale Borough Council,12408,Premises,Public Convenience Cleaning,Water & Sewage,12/01/2022,493187,41.64,ANGLIAN WATER BUSINESS (NATIONAL),X00310,10,2021
Allerdale Borough Council,12408,Premises,Public Convenience Cleaning,Water & Sewage,12/01/2022,493188,36.36,ANGLIAN WATER BUSINESS (NATIONAL),X00310,10,2021
Allerdale Borough Council,12408,Premises,Public Convenience Cleaning,Water & Sewage,12/01/2022,493189,34.69,ANGLIAN WATER BUSINESS (NATIONAL),X00310,10,2021
Allerdale Borough Council,14150,Transport,Gates Travel,General-Council Vehicles (Non-Capital),,493190,-270.5,GATES TRAVEL,A01525,10,2021
Allerdale Borough Council,15810,Supplies & Services,New Finance System,Software Licences,12/01/2022,493191,22000,TECHNOLOGY ONE UK LTD,A02853,10,2021
Allerdale Borough Council,20302,Third Party Payments,Street Cleansing,Contract Services-Street Cleansing,12/01/2022,493192,124166.34,TIVOLI GROUP LTD,A02568,10,2021
Allerdale Borough Council,15100,Supplies & Services,Bereavement Services,"Budget-Equipment, Furniture & Materials",12/01/2022,493193,53.99,GRANART,A00644,10,2021
Allerdale Borough Council,15513,Supplies & Services,Festivals & Events,Subcontractors - General,12/01/2022,493194,750,Redacted information - included personal information ,A02919,10,2021
Allerdale Borough Council,10401,Employee Costs,Licensing Agency Staff,Agency Staff Costs,12/01/2022,493195,1406,G2 RECRUITMENT SOLUTIONS LTD,C00198,10,2021
Allerdale Borough Council,20150,Third Party Payments,Festivals & Events,General Partnership Service Fees,12/01/2022,493196,984,CUMBRIA COUNTY COUNCIL ,A00066,10,2021
Allerdale Borough Council,20150,Third Party Payments,Festivals & Events,General Partnership Service Fees,12/01/2022,493197,984,CUMBRIA COUNTY COUNCIL ,A00066,10,2021
Allerdale Borough Council,15101,Supplies & Services,Customer Services Pay Group,Equipment Costs,19/01/2022,493198,18.58,RELIANCE HIGH-TECH LTD,C00123,10,2021
Allerdale Borough Council,12306,Premises,Public Convenience Cleaning,Legionella Inspections and Services,26/01/2022,493199,300,CLEARWATER TECHNOLOGY,A02153,10,2021
Allerdale Borough Council,10401,Employee Costs,Licensing Agency Staff,Agency Staff Costs,12/01/2022,493200,1330,G2 RECRUITMENT SOLUTIONS LTD,C00198,10,2021
Allerdale Borough Council,12101,Premises,Corporate Property Maintenance,External Maintenance & Decoration,02/02/2022,493201,600,TIVOLI GROUP LTD,A02568,10,2021
Allerdale Borough Council,15804,Supplies & Services,IT Services,Computer Data Lines B.T.,26/01/2022,493202,964.27,VODAFONE ,A00934,10,2021
Allerdale Borough Council,12408,Premises,Public Convenience Cleaning,Water & Sewage,12/01/2022,493203,-2810.05,ANGLIAN WATER BUSINESS (NATIONAL) ,X00310,10,2021
Allerdale Borough Council,12408,Premises,Corporate Property Maintenance,Water & Sewage,12/01/2022,493204,1033.15,ANGLIAN WATER BUSINESS (NATIONAL) ,X00310,10,2021
Allerdale Borough Council,12408,Premises,Public Convenience Cleaning,Water & Sewage,12/01/2022,493205,2679.26,ANGLIAN WATER BUSINESS (NATIONAL) ,X00310,10,2021
Allerdale Borough Council,15704,Supplies & Services,IT Services,Mobile Phones,02/02/2022,493206,500,EE LIMITED,X00290,10,2021
Allerdale Borough Council,12402,Premises,Corporate Property Maintenance,Electricity,12/01/2022,493207,455.02,NPOWER,X00015,10,2021
Allerdale Borough Council,15101,Supplies & Services,Homelessness,Equipment Costs,,493208,98.27,BARCLAYCARD COMMERCIAL ,X00207,10,2021
Allerdale Borough Council,16300,Supplies & Services,Markets,Budget-Miscellaneous,19/01/2022,493209,3500,STEELES REMOVALS LIMITED,A02921,10,2021
Allerdale Borough Council,15810,Supplies & Services,New Finance System,Software Licences,19/01/2022,493210,750,TECHNOLOGY ONE UK LTD,A02853,10,2021
Allerdale Borough Council,50000,Capital Expenditure,Workington - Towns Fund Schemes,Capital Programme,19/01/2022,493211,48930,CUMBRIA COUNTY COUNCIL,A00066,10,2021
Allerdale Borough Council,15102,Supplies & Services,Electoral Registration,Equipment Repair & Maintenance,19/01/2022,493212,213.67,QUADIENT FINANCE UK LTD,A00455,10,2021
Allerdale Borough Council,15550,Supplies & Services,Markets,General-Service Related Fees,19/01/2022,493213,6300,Redacted information - included personal information ,A02801,10,2021
Allerdale Borough Council,10601,Employee Costs,Revenue,External Courses & Seminar Fees,19/01/2022,493214,2500,DM TRAINING SERVICES,A02911,10,2021
Allerdale Borough Council,15550,Supplies & Services,Arts Development,General-Service Related Fees,19/01/2022,493215,51.84,CARNEGIE THEATRE TRUST,R00015,10,2021
Allerdale Borough Council,15101,Supplies & Services,Corporate Property Maintenance,Equipment Costs,19/01/2022,493216,12165,J T ATKINSON & SONS LTD,A01652,10,2021
Allerdale Borough Council,20150,Third Party Payments,Footway Lighting,General Partnership Service Fees,19/01/2022,493217,260,Redacted information - included personal information ,A00242,10,2021
Allerdale Borough Council,15103,Supplies & Services,COVID19 - General Costs,Purchase of Materials,19/01/2022,493220,1011.4,RED OAK DIRECT LIMITED,A02813,10,2021
Allerdale Borough Council,12101,Premises,Coastal Protection and Inland Flooding,External Maintenance & Decoration,26/01/2022,493221,118,UK HARBOUR MASTERS ASSOCIATION,A01583,10,2021
Allerdale Borough Council,15405,Supplies & Services,Communications and Marketing,Use of External Printers,19/01/2022,493222,270,FIRPRESS PRINTERS,A00063,10,2021
Allerdale Borough Council,10601,Employee Costs,Training,External Courses & Seminar Fees,,493223,1447.2,THE LEARN CENTRE,A02256,10,2021
Allerdale Borough Council,10401,Employee Costs,Housing Improvement,Agency Staff Costs,19/01/2022,493224,750,G2 RECRUITMENT SOLUTIONS LTD,C00198,10,2021
Allerdale Borough Council,12201,Premises,Corporate Property Maintenance,Internal Maintenance,19/01/2022,493225,480,IONTHOMAS ARMSTRONG - CONSTRUCTION,C00003,10,2021
Allerdale Borough Council,12302,Premises,Solway Coast AONB Core Funding,Building Cleaning,19/01/2022,493226,122.65,ORIAN SOLUTIONS LTD,A01814,10,2021
Allerdale Borough Council,20150,Third Party Payments,Public Building Cleaning,General Partnership Service Fees,19/01/2022,493227,303.75,ORIAN SOLUTIONS LTD,A01814,10,2021
Allerdale Borough Council,15101,Supplies & Services,Public Building Cleaning,Equipment Costs,19/01/2022,493228,132.6,WF CASCADE,A01794,10,2021
Allerdale Borough Council,12101,Premises,Coastal Protection and Inland Flooding,External Maintenance & Decoration,19/01/2022,493229,4632,ASHCROFT DEMOLITION (CUMBRIA) LTD,C00197,10,2021
Allerdale Borough Council,15101,Supplies & Services,Confidential Waste,Equipment Costs,19/01/2022,493230,48,J DUFFY LTD ,A01846,10,2021
Allerdale Borough Council,12307,Premises,Corporate Property Maintenance,Fixtures and Fittings,19/01/2022,493231,340,STANNAH LIFT SERVICES LTD,X00106,10,2021
Allerdale Borough Council,12303,Premises,Multi Storey Car Park Utilities & Maint,Window Cleaning,19/01/2022,493232,110,NT CLEANERS LTD,A01350,10,2021
Allerdale Borough Council,12309,Premises,Corporate Property Maintenance,Fire and Safety,19/01/2022,493233,196.25,ORIAN SOLUTIONS LTD,A01814,10,2021
Allerdale Borough Council,15101,Supplies & Services,Street Scene,Equipment Costs,19/01/2022,493234,37.16,RELIANCE HIGH-TECH LTD,C00123,10,2021
Allerdale Borough Council,15506,Supplies & Services,Street Scene,Professional Services,19/01/2022,493235,10000,WHINMILL FARM CANINE CENTRE,A00117,10,2021
Allerdale Borough Council,12103,Premises,Environmental Initiatives,Grounds Maintenance,02/02/2022,493236,924,TIVOLI GROUP LTD,A02568,10,2021
Allerdale Borough Council,20150,Third Party Payments,Festivals & Events,General Partnership Service Fees,19/01/2022,493237,1801.25,A W BLAKE LTD,A02687,10,2021
Allerdale Borough Council,20150,Third Party Payments,Festivals & Events,General Partnership Service Fees,19/01/2022,493238,3660.35,A W BLAKE LTD,A02687,10,2021
Allerdale Borough Council,15501,Supplies & Services,Coronavirus Enforcement,Consultants Fees,19/01/2022,493239,1204,G2 RECRUITMENT SOLUTIONS LTD,C00198,10,2021
Allerdale Borough Council,15101,Supplies & Services,Multi-storey Car Park,Equipment Costs,19/01/2022,493240,120,FIRPRESS PRINTERS,A00063,10,2021
Allerdale Borough Council,20101,Third Party Payments,Recycling,Cleansing Contract,19/01/2022,493241,47112.52,CUMBRIA WASTE MANAGEMENT LTD,A01304,10,2021
Allerdale Borough Council,10401,Employee Costs,Food Safety & Occupational Health,Agency Staff Costs,02/02/2022,493242,166.56,HAYS SPECIALIST RECRUITMENT LTD,A00280,10,2021
Allerdale Borough Council,15506,Supplies & Services,Food and Occupational Health,Professional Services,,493243,191.01,UK HEALTH SECURITY AGENCY,A01839,10,2021
Allerdale Borough Council,20302,Third Party Payments,Street Cleansing,Contract Services-Street Cleansing,19/01/2022,493244,612,CUMBRIA WASTE MANAGEMENT LTD,A01304,10,2021
Allerdale Borough Council,10401,Employee Costs,Food Safety & Occupational Health,Agency Staff Costs,,493245,599.2,HAYS SPECIALIST RECRUITMENT LTD,A00280,10,2021
Allerdale Borough Council,10401,Employee Costs,Food Safety & Occupational Health,Agency Staff Costs,,493246,277.6,HAYS SPECIALIST RECRUITMENT LTD,A00280,10,2021
Allerdale Borough Council,10200,Employee Costs,Human Resources Pay Group,Budget-Employee Expenses,,493247,15.5,K&R BADGES LIMITED,A01328,10,2021
Allerdale Borough Council,10601,Employee Costs,Training,External Courses & Seminar Fees,,493248,217,LAND DATA CIC,A02269,10,2021
Allerdale Borough Council,20150,Third Party Payments,Museums,General Partnership Service Fees,19/01/2022,493249,7500,WORKINGTON HERITAGE GROUP LTD,A00339,10,2021
Allerdale Borough Council,15513,Supplies & Services,Festivals & Events,Subcontractors - General,19/01/2022,493250,2200,GREEN CROFT ARTS,A02909,10,2021
Allerdale Borough Council,10601,Employee Costs,Training,External Courses & Seminar Fees,19/01/2022,493251,120,ASSOCIATION OF PORT HEALTH AUTHORITIES,A00808,10,2021
Allerdale Borough Council,33104,Income,Wigton Burial Joint Committee,Cemetery Granting of Burial Right Income,19/01/2022,493252,2156.4,ALLERDALE ,A00342,10,2021
Allerdale Borough Council,16100,Supplies & Services,Communications and Marketing,Budget-Advertising and Promotions,,493253,1183.03,BARCLAYCARD COMMERCIAL ,X00207,10,2021
Allerdale Borough Council,12101,Premises,Corporate Property Maintenance,External Maintenance & Decoration,,493254,438.8,BARCLAYCARD COMMERCIAL ,X00207,10,2021
Allerdale Borough Council,30100,Income,Prevention Fund,Budget -Government Grants Income,19/01/2022,493255,565,Redacted information - included personal information ,M00451,10,2021
Allerdale Borough Council,21150,Transfer Payments,Sports Development,General Grants,19/01/2022,493256,6210,COCKERMOUTH RUFC,M02117,10,2021
Allerdale Borough Council,20150,Third Party Payments,Managed Car Parks,General Partnership Service Fees,19/01/2022,493257,58807.85,E H BOOTH & CO LIMITED,A00919,10,2021
Allerdale Borough Council,21150,Transfer Payments,Sports Development,General Grants,19/01/2022,493258,650,NETHERHALL RUFC.,M01104,10,2021
Allerdale Borough Council,33104,Income,Wigton Burial Joint Committee,Cemetery Granting of Burial Right Income,19/01/2022,493259,8768.6,WIGTON TOWN COUNCIL,M02045,10,2021
Allerdale Borough Council,54105,Capital Expenditure,Disabled Facilities Grants,Grants  Private Individuals (Capital),19/01/2022,493260,1865.48,PARTNERSHIP IN PROPERTY MANAGEMENT LTD,X00120,10,2021
Allerdale Borough Council,54105,Capital Expenditure,Disabled Facilities Grants,Grants  Private Individuals (Capital),19/01/2022,493261,3194.56,PARTNERSHIP IN PROPERTY MANAGEMENT LTD,X00120,10,2021
Allerdale Borough Council,54105,Capital Expenditure,Disabled Facilities Grants,Grants  Private Individuals (Capital),19/01/2022,493262,2665,STANNAH LIFT SERVICES LTD,X00106,10,2021
Allerdale Borough Council,15100,Supplies & Services,Homelessness,"Budget-Equipment, Furniture & Materials",,493263,64.28,BARCLAYCARD COMMERCIAL ,X00207,10,2021
Allerdale Borough Council,33112,Income,Planning and Development,Planning Fees Income,19/01/2022,493264,116,Redacted information - included personal information ,M02118,10,2021
Allerdale Borough Council,16301,Supplies & Services,Sports Development,Reimbursement,19/01/2022,493265,130,Redacted information - included personal information ,M02119,10,2021
Allerdale Borough Council,30100,Income,Prevention Fund,Budget -Government Grants Income,19/01/2022,493266,1519.83,WESTFIELD HOUSING ASSOC,A00673,10,2021
Allerdale Borough Council,10401,Employee Costs,Food Safety & Occupational Health,Agency Staff Costs,19/01/2022,493267,277.6,HAYS SPECIALIST RECRUITMENT LTD,A00280,10,2021
Allerdale Borough Council,12309,Premises,Corporate Property Maintenance,Fire and Safety,19/01/2022,493268,12,COMPASS SERVICES GROUP,A00839,10,2021
Allerdale Borough Council,12301,Premises,Corporate Property Maintenance,Security,19/01/2022,493269,31,COMPASS SERVICES GROUP,A00839,10,2021
Allerdale Borough Council,10401,Employee Costs,Licensing Agency Staff,Agency Staff Costs,19/01/2022,493270,1140,G2 RECRUITMENT SOLUTIONS LTD,C00198,10,2021
Allerdale Borough Council,15402,Supplies & Services,Multi-functional Printers,Photocopier Charges,02/02/2022,493271,11.64,KONICA MINOLTA BUSINESS SOLUTIONS UK LTD,A01556,10,2021
Allerdale Borough Council,15811,Supplies & Services,IT Services,Software Maintenance,26/01/2022,493272,1518.97,HELPSYSTEMS,A02638,10,2021
Allerdale Borough Council,15806,Supplies & Services,IT Services,Computer Agencies,,493273,1800,MTI TECHNOLOGY LIMITED,A02507,10,2021
Allerdale Borough Council,73102,Holding and Control Accounts,Capital Project Retentions,Holding Accounts General - Expenditure,19/01/2022,493274,53248.29,HISTORIC PROPERTY RESTORATIONS LIMITED,C00150,10,2021
Allerdale Borough Council,20304,Third Party Payments,Recycling,Contract Services-Recycling,19/01/2022,493275,615873.44,ALLERDALE WASTE SERVICES LIMITED,A02756,10,2021
Allerdale Borough Council,15601,Supplies & Services,Corporate Postage and Stationary,Postage,19/01/2022,493276,710.17,UK MAIL GROUP PLC,A02371,10,2021
Allerdale Borough Council,12501,Premises,Bereavement Services,NNDR and Other Occupancy Charges,19/01/2022,493277,4337.87,ALLERDALE ,A00342,10,2021
Allerdale Borough Council,12501,Premises,Bereavement Services,NNDR and Other Occupancy Charges,19/01/2022,493278,4940.1,ALLERDALE ,A00342,10,2021
Allerdale Borough Council,12501,Premises,Bereavement Services,NNDR and Other Occupancy Charges,19/01/2022,493279,4940.1,ALLERDALE ,A00342,10,2021
Allerdale Borough Council,15503,Supplies & Services,Revenue,Court and Tribunal Costs,17/01/2022,493280,207,HM COURTS & TRIBUNAL SERVICE ,A02221,10,2021
Allerdale Borough Council,15601,Supplies & Services,Corporate Postage and Stationary,Postage,19/01/2022,493281,62.67,ROYAL MAIL LETTERS,X00021,10,2021
Allerdale Borough Council,12402,Premises,Multi Storey Car Park Utilities & Maint,Electricity,19/01/2022,493282,-1637.27,NPOWER ,X00015,10,2021
Allerdale Borough Council,12402,Premises,Corporate Property Maintenance,Electricity,19/01/2022,493283,3976.26,NPOWER ,X00015,10,2021
Allerdale Borough Council,12402,Premises,Corporate Property Maintenance,Electricity,19/01/2022,493284,1799.01,NPOWER ,X00015,10,2021
Allerdale Borough Council,12402,Premises,Multi Storey Car Park Utilities & Maint,Electricity,19/01/2022,493285,1943.26,NPOWER ,X00015,10,2021
Allerdale Borough Council,12402,Premises,Multi Storey Car Park Utilities & Maint,Electricity,19/01/2022,493286,1646.23,NPOWER ,X00015,10,2021
Allerdale Borough Council,12402,Premises,Maryport FHS Project,Electricity,19/01/2022,493287,44.94,EDF ENERGY,X00312,10,2021
Allerdale Borough Council,12402,Premises,Maryport FHS Project,Electricity,19/01/2022,493288,46.32,EDF ENERGY,X00312,10,2021
Allerdale Borough Council,12402,Premises,Maryport FHS Project,Electricity,19/01/2022,493289,47.5,EDF ENERGY,X00312,10,2021
Allerdale Borough Council,15702,Supplies & Services,IT Services,Line Rentals,19/01/2022,493290,314.6,BRITISH TELECOMMUNICATIONS,X00004,10,2021
Allerdale Borough Council,15704,Supplies & Services,IT Services,Mobile Phones,19/01/2022,493291,46,VODAFONE,A00551,10,2021
Allerdale Borough Council,15601,Supplies & Services,Corporate Postage and Stationary,Postage,19/01/2022,493292,9.9,ROYAL MAIL LETTERS,X00021,10,2021
Allerdale Borough Council,15704,Supplies & Services,IT Services,Mobile Phones,19/01/2022,493293,220.25,EE LIMITED,X00311,10,2021
Allerdale Borough Council,15805,Supplies & Services,IT Services,Computer Network,02/02/2022,493294,30,THUS/DEMON PLC,A00598,10,2021
Allerdale Borough Council,15703,Supplies & Services,IT Services,Call Charges,19/01/2022,493295,133.22,BRITISH TELECOM PLC,A00363,10,2021
Allerdale Borough Council,15703,Supplies & Services,IT Services,Call Charges,19/01/2022,493296,671.59,BRITISH TELECOMMUNICATIONS,X00004,10,2021
Allerdale Borough Council,12402,Premises,Tenanted Properties,Electricity,19/01/2022,493297,0.82,EON NEXT ,X00314,10,2021
Allerdale Borough Council,15811,Supplies & Services,IT Services,Software Maintenance,,493298,3515.58,PHOENIX SOFTWARE LTD,A00229,10,2021
Allerdale Borough Council,15703,Supplies & Services,IT Services,Call Charges,19/01/2022,493299,341.34,BRITISH TELECOM PLC,A00363,10,2021
Allerdale Borough Council,15103,Supplies & Services,Workington Nature Partnership,Purchase of Materials,19/01/2022,493300,553,FIRPRESS PRINTERS,A00063,10,2021
Allerdale Borough Council,15102,Supplies & Services,Environmental Protection,Equipment Repair & Maintenance,26/01/2022,493301,553.5,CIRRUS RESEARCH,A02159,10,2021
Allerdale Borough Council,15506,Supplies & Services,Food and Occupational Health,Professional Services,26/01/2022,493302,266.6,MILLCROFT VETERINARY GROUP,A00211,10,2021
Allerdale Borough Council,15506,Supplies & Services,Food and Occupational Health,Professional Services,26/01/2022,493303,326.3,MILLCROFT VETERINARY GROUP,A00211,10,2021
Allerdale Borough Council,15506,Supplies & Services,Legal Services,Professional Services,26/01/2022,493304,909.8,BEVAN BRITTAN LLP,A02181,10,2021
Allerdale Borough Council,15103,Supplies & Services,Workington Nature Partnership,Purchase of Materials,26/01/2022,493305,99.88,CUMBRIA WILDFLOWERS LTD,A02646,10,2021
Allerdale Borough Council,10601,Employee Costs,Training,External Courses & Seminar Fees,,493306,210,WESTMINSTER FORUM PROJECTS,A02414,10,2021
Allerdale Borough Council,15506,Supplies & Services,Legal Services,Professional Services,26/01/2022,493307,1509,BURNETTS SOLICITORS,A00129,10,2021
Allerdale Borough Council,15506,Supplies & Services,Legal Services,Professional Services,,493308,750,KINGS CHAMBERS,A00348,10,2021
Allerdale Borough Council,12101,Premises,Coastal Protection and Inland Flooding,External Maintenance & Decoration,26/01/2022,493309,1226,ASHCROFT DEMOLITION (CUMBRIA) LTD,C00197,10,2021
Allerdale Borough Council,16101,Supplies & Services,Planning and Development,Statutory Notices,,493310,561.31,NEWSQUEST MEDIA GROUP,A02348,10,2021
Allerdale Borough Council,15508,Supplies & Services,Building Control - Chargeable,Subscriptions,26/01/2022,493311,278,CHARTERED ASSOCIATION OF BUILDING ENGINEERS,A01875,10,2021
Allerdale Borough Council,20150,Third Party Payments,Festivals & Events,General Partnership Service Fees,,493312,100,LOCAL AUTHORITIES EVENTS ORGANISERS GROUP (LAEOG UK),A02679,10,2021
Allerdale Borough Council,14101,Transport,Allerdale Fleet,Vehicle Leasing,26/01/2022,493313,10,ALLERDALE WASTE SERVICES LIMITED,A02756,10,2021
Allerdale Borough Council,15808,Supplies & Services,Solway Coast AONB Core Funding,Computer Consumables,,493314,24.98,FUSION GFX LTD,A02473,10,2021
Allerdale Borough Council,10601,Employee Costs,Training,External Courses & Seminar Fees,,493315,450,AQUILA TRAINING SERVICES LTD,A00196,10,2021
Allerdale Borough Council,10601,Employee Costs,Training,External Courses & Seminar Fees,,493316,160,AQUILA TRAINING SERVICES LTD,A00196,10,2021
Allerdale Borough Council,10601,Employee Costs,Training,External Courses & Seminar Fees,,493317,110,AQUILA TRAINING SERVICES LTD,A00196,10,2021
Allerdale Borough Council,10601,Employee Costs,Training,External Courses & Seminar Fees,,493318,160,AQUILA TRAINING SERVICES LTD,A00196,10,2021
Allerdale Borough Council,10601,Employee Costs,Training,External Courses & Seminar Fees,,493319,234,HIGH SPEED TRAINING LTD,A02931,10,2021
Allerdale Borough Council,10601,Employee Costs,Training,External Courses & Seminar Fees,,493320,240,AQUILA TRAINING SERVICES LTD,A00196,10,2021
Allerdale Borough Council,10202,Employee Costs,Human Resources Pay Group,Medical Screening,26/01/2022,493321,230,FIT2WORK LTD,A02603,10,2021
Allerdale Borough Council,10401,Employee Costs,Food Safety & Occupational Health,Agency Staff Costs,,493322,208.2,HAYS SPECIALIST RECRUITMENT LTD,A00280,10,2021
Allerdale Borough Council,15513,Supplies & Services,Festivals & Events,Subcontractors - General,26/01/2022,493323,1100,GREEN CROFT ARTS,A02909,10,2021
Allerdale Borough Council,10401,Employee Costs,Food Safety & Occupational Health,Agency Staff Costs,,493324,357.41,HAYS SPECIALIST RECRUITMENT LTD,A00280,10,2021
Allerdale Borough Council,10401,Employee Costs,Food Safety & Occupational Health,Agency Staff Costs,,493325,599.2,HAYS SPECIALIST RECRUITMENT LTD,A00280,10,2021
Allerdale Borough Council,15506,Supplies & Services,Environmental Protection,Professional Services,,493326,9.7,SOCOTEC UK LIMITED,A00896,10,2021
Allerdale Borough Council,15513,Supplies & Services,Festivals & Events,Subcontractors - General,26/01/2022,493327,2200,YAN TAN TETHERA CREATIVE,A02837,10,2021
Allerdale Borough Council,15501,Supplies & Services,Building Control - Chargeable,Consultants Fees,02/02/2022,493328,384,ASHCROFT DEMOLITION (CUMBRIA) LTD,C00197,10,2021
Allerdale Borough Council,15803,Supplies & Services,ICT Infrastructure Costs,Hardware Purchase,,493329,966.5,INSIGHT DIRECT (UK) LTD,A00054,10,2021
Allerdale Borough Council,15811,Supplies & Services,IT Services,Software Maintenance,17/01/2022,493330,351,SAGE (UK) LTD ,A01911,10,2021
Allerdale Borough Council,15101,Supplies & Services,Multi-storey Car Park,Equipment Costs,26/01/2022,493331,330,FIRPRESS PRINTERS,A00063,10,2021
Allerdale Borough Council,12101,Premises,Car Parks Inspection & Maintenance,External Maintenance & Decoration,26/01/2022,493332,1485.64,JOHN ELLIOT LTD,C00023,10,2021
Allerdale Borough Council,12201,Premises,Multi Storey Car Park Utilities & Maint,Internal Maintenance,,493333,327.54,TIVOLI GROUP LTD,A02568,10,2021
Allerdale Borough Council,10401,Employee Costs,Housing Improvement,Agency Staff Costs,26/01/2022,493334,675,G2 RECRUITMENT SOLUTIONS LTD,C00198,10,2021
Allerdale Borough Council,15811,Supplies & Services,IT Services,Software Maintenance,26/01/2022,493335,515.07,GOWER CONSULTANTS LTD,A00821,10,2021
Allerdale Borough Council,10401,Employee Costs,Licensing Agency Staff,Agency Staff Costs,26/01/2022,493336,1406,G2 RECRUITMENT SOLUTIONS LTD,C00198,10,2021
Allerdale Borough Council,15811,Supplies & Services,ICT Infrastructure Costs,Software Maintenance,,493337,3208.5,NET-CTRL LTD,A02128,10,2021
Allerdale Borough Council,14104,Transport,Public Convenience Cleaning,Repairs & Maintenance,26/01/2022,493338,358.26,ALLERDALE WASTE SERVICES LIMITED,A02756,10,2021
Allerdale Borough Council,12305,Premises,Corporate Property Maintenance,Inspections and Services,,493339,185,GDUK DOOR SOLUTIONS LTD,C00239,10,2021
Allerdale Borough Council,15811,Supplies & Services,IT Services,Software Maintenance,,493340,250,LANDMARK INFORMATION GROUP LTD,A00813,10,2021
Allerdale Borough Council,12202,Premises,Corporate Property Maintenance,Electrical Repairs and Service,02/02/2022,493341,147.6,JJ GROUP (CONTRACTING) LTD,C00038,10,2021
Allerdale Borough Council,12202,Premises,Corporate Property Maintenance,Electrical Repairs and Service,02/02/2022,493342,169.2,JJ GROUP (CONTRACTING) LTD,C00038,10,2021
Allerdale Borough Council,12202,Premises,Corporate Property Maintenance,Electrical Repairs and Service,02/02/2022,493343,105,JJ GROUP (CONTRACTING) LTD,C00038,10,2021
Allerdale Borough Council,12202,Premises,Multi Storey Car Park Utilities & Maint,Electrical Repairs and Service,26/01/2022,493344,492,CITY ELECTRICAL FACTORS,A00395,10,2021
Allerdale Borough Council,15405,Supplies & Services,Elections,Use of External Printers,26/01/2022,493345,1500,ADARE SEC LIMITED,A02306,10,2021
Allerdale Borough Council,15601,Supplies & Services,Elections,Postage,26/01/2022,493346,634.49,ADARE SEC LIMITED,A02306,10,2021
Allerdale Borough Council,15506,Supplies & Services,Legal Services,Professional Services,26/01/2022,493347,132,BURNETTS SOLICITORS,A00129,10,2021
Allerdale Borough Council,16100,Supplies & Services,Communications and Marketing,Budget-Advertising and Promotions,,493348,155.83,BARCLAYCARD COMMERCIAL,X00207,10,2021
Allerdale Borough Council,16100,Supplies & Services,Communications and Marketing,Budget-Advertising and Promotions,,493349,521.61,BARCLAYCARD COMMERCIAL,X00207,10,2021
Allerdale Borough Council,15100,Supplies & Services,Rapid Rehousing Pathway (RRP),"Budget-Equipment, Furniture & Materials",,493350,165.17,BARCLAYCARD COMMERCIAL,X00207,10,2021
Allerdale Borough Council,15100,Supplies & Services,Rapid Rehousing Pathway (RRP),"Budget-Equipment, Furniture & Materials",,493351,156.59,BARCLAYCARD COMMERCIAL,X00207,10,2021
Allerdale Borough Council,15300,Supplies & Services,Property Services Pay Group,Budget-Prov of Clothing and Equipment,,493352,260.22,BARCLAYCARD COMMERCIAL,X00207,10,2021
Allerdale Borough Council,10600,Employee Costs,Homelessness,Budget-Training,,493353,96,BARCLAYCARD COMMERCIAL,X00207,10,2021
Allerdale Borough Council,14200,Transport,Homelessness,Budget-Travel,,493354,68.12,BARCLAYCARD COMMERCIAL,X00207,10,2021
Allerdale Borough Council,14200,Transport,Homelessness,Budget-Travel,,493355,49.35,BARCLAYCARD COMMERCIAL,X00207,10,2021
Allerdale Borough Council,15201,Supplies & Services,Mayoral Services,Entertainment Of Visitors,,493356,131.38,BARCLAYCARD COMMERCIAL,X00207,10,2021
Allerdale Borough Council,16350,Supplies & Services,Leaders Portfolio,Miscellaneous Expenses,26/01/2022,493357,200,COCKERMOUTH MECHANICS BAND,A02907,10,2021
Allerdale Borough Council,54105,Capital Expenditure,Disabled Facilities Grants,Grants  Private Individuals (Capital),26/01/2022,493358,4500,DOLPHIN STAIRLIFTS CUMBRIA,X00107,10,2021
Allerdale Borough Council,16350,Supplies & Services,Prevention Fund,Miscellaneous Expenses,26/01/2022,493359,250,Redacted information - included personal information ,M02123,10,2021
Allerdale Borough Council,33117,Income,Off-street - Owned,Car Parks - Income from Machines,26/01/2022,493360,9.5,Redacted information - included personal information ,M02122,10,2021
Allerdale Borough Council,12101,Premises,Harrington Harbour,External Maintenance & Decoration,26/01/2022,493361,26.99,Redacted information - included personal information ,M02121,10,2021
Allerdale Borough Council,16350,Supplies & Services,Prevention Fund,Miscellaneous Expenses,26/01/2022,493362,689.61,HOME GROUP LTD,A00423,10,2021
Allerdale Borough Council,21101,Transfer Payments,Assistance - Housing Services,Private Individuals,26/01/2022,493363,1750,HUNTER LEISURE GROUP LIMITED,X00315,10,2021
Allerdale Borough Council,54105,Capital Expenditure,Disabled Facilities Grants,Grants  Private Individuals (Capital),26/01/2022,493364,12972.36,K BAILIFF & SON LIMITED,X00116,10,2021
Allerdale Borough Council,16350,Supplies & Services,Homelessness,Miscellaneous Expenses,26/01/2022,493365,800,Redacted information - included personal information ,M02038,10,2021
Allerdale Borough Council,16300,Supplies & Services,Sports Development,Budget-Miscellaneous,26/01/2022,493366,3000,PARKRUN LIMITED,M02120,10,2021
Allerdale Borough Council,54105,Capital Expenditure,Disabled Facilities Grants,Grants  Private Individuals (Capital),26/01/2022,493367,1722.5,PARTNERSHIP IN PROPERTY MANAGEMENT LTD,X00120,10,2021
Allerdale Borough Council,54105,Capital Expenditure,Disabled Facilities Grants,Grants  Private Individuals (Capital),26/01/2022,493368,3049.5,PARTNERSHIP IN PROPERTY MANAGEMENT LTD,X00120,10,2021
Allerdale Borough Council,54105,Capital Expenditure,Disabled Facilities Grants,Grants  Private Individuals (Capital),26/01/2022,493369,3208.25,PARTNERSHIP IN PROPERTY MANAGEMENT LTD,X00120,10,2021
Allerdale Borough Council,54105,Capital Expenditure,Disabled Facilities Grants,Grants  Private Individuals (Capital),26/01/2022,493370,8160,PARTNERSHIP IN PROPERTY MANAGEMENT LTD,X00120,10,2021
Allerdale Borough Council,54105,Capital Expenditure,Disabled Facilities Grants,Grants  Private Individuals (Capital),26/01/2022,493371,9045,PARTNERSHIP IN PROPERTY MANAGEMENT LTD,X00120,10,2021
Allerdale Borough Council,54105,Capital Expenditure,Disabled Facilities Grants,Grants  Private Individuals (Capital),26/01/2022,493372,3445.22,W W BUILDERS LIMITED,X00212,10,2021
Allerdale Borough Council,12309,Premises,Multi Storey Car Park Utilities & Maint,Fire and Safety,,493373,267,COOK FIRE & SECURITY LTD,A02485,10,2021
Allerdale Borough Council,15101,Supplies & Services,Customer Services Pay Group,Equipment Costs,,493374,557,AMAZON PAYMENTS UK LTD,A02682,10,2021
Allerdale Borough Council,12202,Premises,Multi Storey Car Park Utilities & Maint,Electrical Repairs and Service,02/02/2022,493375,164,CITY ELECTRICAL FACTORS,A00395,10,2021
Allerdale Borough Council,15506,Supplies & Services,Legal Services,Professional Services,26/01/2022,493376,4166.66,CARLISLE CITY COUNCIL,A00161,10,2021
Allerdale Borough Council,12402,Premises,Conversion of Otley Road,Electricity,26/01/2022,493377,32.95,NPOWER ,X00015,10,2021
Allerdale Borough Council,15804,Supplies & Services,IT Services,Computer Data Lines B.T.,26/01/2022,493378,20377.34,BRITISH TELECOMMUNICATIONS,X00004,10,2021
Allerdale Borough Council,15702,Supplies & Services,IT Services,Line Rentals,,493379,796.89,BABBLE CLOUD LIMITED,A02933,10,2021
Allerdale Borough Council,50000,Capital Expenditure,Brow Top Enhancements,Capital Programme,26/01/2022,493380,14152.86,AST SIGNS LIMITED,A01473,10,2021
Allerdale Borough Council,15500,Supplies & Services,Strategic Partners,Budget-Services,26/01/2022,493381,472.5,FREETHS LLP,A01821,10,2021
Allerdale Borough Council,15500,Supplies & Services,Strategic Partners,Budget-Services,26/01/2022,493382,87.5,FREETHS LLP,A01821,10,2021
Allerdale Borough Council,15500,Supplies & Services,Strategic Partners,Budget-Services,26/01/2022,493383,525,FREETHS LLP,A01821,10,2021
Allerdale Borough Council,15810,Supplies & Services,Arcus,Software Licences,,493384,11050,ARCUS GLOBAL LTD,A02496,10,2021
Allerdale Borough Council,15501,Supplies & Services,New Finance System,Consultants Fees,02/02/2022,493385,3600,BLOOM PROCUREMENT SERVICES,A02360,10,2021
Allerdale Borough Council,15506,Supplies & Services,Legal Services,Professional Services,02/02/2022,493386,6300,HARRISON DRURY & CO LIMITED,A02838,10,2021
Allerdale Borough Council,12405,Premises,Customer Services Pay Group,Rentals and Lease Charges,02/02/2022,493387,1250,SOLWAY PLAIN FUTURES LTD,A01194,10,2021
Allerdale Borough Council,10601,Employee Costs,Training,External Courses & Seminar Fees,,493388,750,IVY LEGAL LIMITED,A02935,10,2021
Allerdale Borough Council,16350,Supplies & Services,Reopening High Streets,Miscellaneous Expenses,02/02/2022,493389,4750,INTRO PR & SOCIAL MEDIA,A02930,10,2021
Allerdale Borough Council,15501,Supplies & Services,Building Control - Chargeable,Consultants Fees,02/02/2022,493390,250,WHINBARROW DESIGN SERVICES LTD,A00311,10,2021
Allerdale Borough Council,10401,Employee Costs,Housing Improvement,Agency Staff Costs,02/02/2022,493391,618.75,G2 RECRUITMENT SOLUTIONS LTD,C00198,10,2021
Allerdale Borough Council,12101,Premises,Corporate Property Maintenance,External Maintenance & Decoration,02/02/2022,493392,6342.01,THOMAS ARMSTRONG - CONSTRUCTION,C00003,10,2021
Allerdale Borough Council,15506,Supplies & Services,Waste Services - Legal Costs,Professional Services,02/02/2022,493393,119,BEVAN BRITTAN LLP,A02181,10,2021
Allerdale Borough Council,15101,Supplies & Services,Corporate Property Maintenance,Equipment Costs,,493394,110.94,BOOKER CASH & CARRY,A01419,10,2021
Allerdale Borough Council,12101,Premises,Car Parks Inspection & Maintenance,External Maintenance & Decoration,02/02/2022,493395,72,J T ATKINSON & SONS LTD,A01652,10,2021
Allerdale Borough Council,15550,Supplies & Services,Markets,General-Service Related Fees,,493396,4040,Redacted information - included personal information ,A02801,10,2021
Allerdale Borough Council,12405,Premises,NSAP,Rentals and Lease Charges,02/02/2022,493397,550,CUMBERLAND HOTEL,A02415,10,2021
Allerdale Borough Council,12405,Premises,NSAP,Rentals and Lease Charges,02/02/2022,493398,135,CUMBERLAND HOTEL,A02415,10,2021
Allerdale Borough Council,12405,Premises,NSAP,Rentals and Lease Charges,02/02/2022,493399,225,CUMBERLAND HOTEL,A02415,10,2021
Allerdale Borough Council,12405,Premises,Homelessness,Rentals and Lease Charges,02/02/2022,493400,360,CUMBERLAND HOTEL,A02415,10,2021
Allerdale Borough Council,12405,Premises,NSAP,Rentals and Lease Charges,02/02/2022,493401,1395,CUMBERLAND HOTEL,A02415,10,2021
Allerdale Borough Council,12405,Premises,NSAP,Rentals and Lease Charges,02/02/2022,493402,990,CUMBERLAND HOTEL,A02415,10,2021
Allerdale Borough Council,12405,Premises,NSAP,Rentals and Lease Charges,02/02/2022,493403,440,CUMBERLAND HOTEL,A02415,10,2021
Allerdale Borough Council,12405,Premises,NSAP,Rentals and Lease Charges,02/02/2022,493404,110,CUMBERLAND HOTEL,A02415,10,2021
Allerdale Borough Council,12405,Premises,NSAP,Rentals and Lease Charges,02/02/2022,493405,990,CUMBERLAND HOTEL,A02415,10,2021
Allerdale Borough Council,12405,Premises,NSAP,Rentals and Lease Charges,02/02/2022,493406,330,CUMBERLAND HOTEL,A02415,10,2021
Allerdale Borough Council,12405,Premises,NSAP,Rentals and Lease Charges,02/02/2022,493407,935,CUMBERLAND HOTEL,A02415,10,2021
Allerdale Borough Council,12405,Premises,NSAP,Rentals and Lease Charges,02/02/2022,493408,550,CUMBERLAND HOTEL,A02415,10,2021
Allerdale Borough Council,12405,Premises,Homelessness,Rentals and Lease Charges,02/02/2022,493409,550,CUMBERLAND HOTEL,A02415,10,2021
Allerdale Borough Council,15501,Supplies & Services,Asset Transfer,Consultants Fees,,493410,450,LEEMING ASSOCIATES,A02264,10,2021
Allerdale Borough Council,12202,Premises,Multi Storey Car Park Utilities & Maint,Electrical Repairs and Service,02/02/2022,493411,6516,JJ GROUP (CONTRACTING) LTD,C00038,10,2021
Allerdale Borough Council,10604,Employee Costs,Remembering the Solway,Hire of Training Rooms/Venues,02/02/2022,493412,180,NORTH CUMBRIA METHODIST CIRCUIT,M00901,10,2021
Allerdale Borough Council,75103,Holding and Control Accounts,Payroll Suspense Account,PAYROLL January 2022 Travel & Subsistence  ,,,6997.35,INLAND REVENUE,X00038,10,2021
